bitfinex/quotes_ETHUSD_20251130
["timestamp","ask_amount","ask_price","bid_price","bid_amount"]
[1764464888813,0.4567,3011.9,3011.6,3.80605299]
[1764464889124,0.4567,3011.9,3011.6,4.01905299]
[1764464893915,0.4567,3011.7,3011.6,0.6986]
[1764464894132,0.4567,3011.7,3011.6,0.213]
[1764464894438,0.4567,3011.7,3011.5,1.60743595]
[1764464894439,0.9423,3011.7,3011.5,1.36744184]
[1764464894741,0.9423,3011.6,3011.5,0.213]
[1764464894921,0.9423,3011.6,3011.5,0.001]
[1764464895524,1.47241685,3011.6,3011.5,0.001]
[1764464895725,4.36665146,3011.6,3011.5,0.001]
[1764464896523,4.70258579,3011.6,3011.5,0.001]
[1764464896713,4.91458579,3011.6,3011.5,0.001]
[1764464904060,4.91461308,3011.6,3011.5,0.001]
[1764464905047,5.01380336,3011.6,3011.5,0.001]
[1764464905244,5.84722228,3011.6,3011.5,0.001]
[1764464906843,10.65883024,3011.6,3011.5,0.001]
[1764464907233,11.06433424,3011.6,3011.5,0.001]
[1764464910156,5.44009178,3011.6,3011.5,0.001]
[1764464914865,3.42437875,3011.6,3011.5,0.1762]
[1764464915940,3.42437875,3011.6,3011.5,0.3514]
[1764464915941,0.10388467,3011.6,3011.5,0.3514]
[1764464916343,0.10388467,3012.1,3011.5,0.3514]
[1764464916650,3.31984112,3012.2,3011.5,0.3514]
[1764464916651,0.10388467,3012.0,3011.5,0.3514]
[1764464916847,0.10388467,3011.9,3011.5,0.3514]
[1764464917073,0.10388467,3011.8,3011.5,0.1762]
[1764464917368,0.10388467,3011.7,3011.5,0.1762]
[1764464917668,3.32005909,3012.0,3011.9,0.1752]
[1764464917855,4.08791762,3012.0,3011.9,0.1752]
[1764464918037,4.08791762,3012.0,3011.6,0.1752]
[1764464918241,0.10385788,3011.9,3011.5,0.001]
[1764464918442,0.10385788,3011.8,3011.5,0.001]
[1764464918671,0.10385788,3011.7,3011.5,0.001]
[1764464918870,0.10385788,3011.6,3011.5,0.001]
[1764464919052,0.43979221,3011.8,3011.5,0.001]
[1764464919252,0.10385788,3011.7,3011.5,0.001]
[1764464919577,0.33593433,3011.8,3011.5,0.001]
[1764464919770,0.10386404,3011.7,3011.5,0.001]
[1764464920067,0.10386425,3011.6,3011.5,0.001]
[1764464920265,3.42433301,3011.7,3011.5,0.001]
[1764464920470,0.10386425,3011.6,3011.5,0.001]
[1764464920688,0.10386425,3011.7,3011.5,0.001]
[1764464920886,0.10386425,3011.6,3011.5,0.001]
[1764464921647,0.10386425,3011.6,3011.5,0.1762]
[1764464922292,3.42435833,3011.6,3011.5,0.1762]
[1764464922753,3.88575833,3011.6,3011.5,0.001]
[1764464922960,4.22819416,3011.6,3011.5,0.001]
[1764464923866,3.76679416,3011.6,3011.5,0.001]
[1764464924066,3.42435833,3011.6,3011.5,0.001]
[1764464926192,0.10386425,3011.6,3011.5,0.1762]
[1764464926361,3.31870155,3013.3,3011.5,0.1762]
[1764464926362,0.4666,3013.7,3011.6,1.13109811]
[1764464926556,3.31825113,3013.7,3012.5,5.93048484]
[1764464926750,3.506762,3013.9,3012.5,4.16439974]
[1764464926974,6.99847751,3013.7,3012.5,2.66751564]
[1764464927172,3.21362847,3013.5,3012.5,1.25311753]
[1764464927373,3.21562847,3013.0,3012.5,0.0713]
[1764464927895,0.002,3013.0,3012.5,0.0713]
[1764464928390,0.1908,3012.9,3012.5,0.0713]
[1764464928559,0.1908,3012.9,3012.3,3.5316884]
[1764464929074,0.1908,3012.9,3012.5,0.0713]
[1764464929481,0.1908,3012.9,3012.5,3.39080207]
[1764464929685,0.4686,3013.0,3012.5,3.39080207]
[1764464930089,0.4686,3013.0,3012.5,0.0713]
[1764464932260,0.9207,3012.6,3011.7,0.88463554]
[1764464932476,0.4642,3012.5,3011.7,0.212]
[1764464932674,0.9187,3012.5,3011.7,0.93759411]
[1764464932961,0.9187,3012.5,3011.8,0.212]
[1764464932962,1.25463433,3012.5,3011.8,0.212]
[1764464933208,0.4545,3012.4,3011.8,0.212]
[1764464934791,0.4545,3012.4,3011.8,3.32027359]
[1764464934955,0.8321099,3012.4,3011.8,3.32027359]
[1764464935360,0.4545,3012.4,3011.8,3.32027359]
[1764464935865,0.33593433,3012.5,3011.5,3.32157705]
[1764464936076,0.33593433,3012.2,3011.5,3.53357705]
[1764464936382,1.00443433,3012.6,3011.6,0.10450494]
[1764464936568,4.32383315,3012.6,3011.6,0.0713]
[1764464936771,0.43238331,3012.5,3011.6,0.0713]
[1764464937065,3.75189535,3012.5,3011.7,6.64076766]
[1764464937482,4.20639535,3012.5,3011.7,6.64076766]
[1764464938573,0.43238331,3012.5,3011.8,0.0713]
[1764464938888,0.002,3012.6,3012.5,0.405504]
[1764464939089,0.002,3012.6,3012.5,4.80520018]
[1764464940390,0.002,3012.6,3012.5,4.59320018]
[1764464940607,0.002,3012.6,3012.5,5.13784091]
[1764464940767,0.002,3012.6,3012.5,6.07205045]
[1764464942492,0.002,3012.6,3012.5,5.73940972]
[1764464942689,0.002,3012.6,3012.5,6.95483944]
[1764464942986,0.002,3012.6,3012.5,6.74283944]
[1764464943187,0.002,3012.6,3012.5,6.07205045]
[1764464943493,0.002,3012.6,3012.5,6.95463372]
[1764464944866,0.002,3012.6,3012.5,6.62199299]
[1764464950690,0.002,3012.6,3012.5,6.95463372]
[1764464951171,0.002,3012.6,3012.5,6.07205045]
[1764464951403,0.002,3013.0,3012.9,0.33264073]
[1764464951700,0.002,3013.0,3012.9,0.61604073]
[1764464951874,0.002,3013.0,3012.9,0.3548]
[1764464953293,0.002,3013.0,3012.9,4.18745547]
[1764464953479,0.002,3013.0,3012.9,4.73355947]
[1764464953680,0.002,3013.0,3012.9,5.66735303]
[1764464953882,0.002,3013.0,3012.9,5.73875303]
[1764464954492,0.002,3013.0,3012.9,6.62065214]
[1764464955183,0.002,3013.0,3012.9,5.66735303]
[1764464955383,0.002,3013.0,3012.9,6.54925214]
[1764464957194,0.002,3013.0,3012.9,6.62065214]
[1764464957913,0.002,3013.0,3012.9,6.95329287]
[1764464958095,0.002,3013.0,3012.9,6.03820315]
[1764464958294,0.002,3013.0,3012.9,6.07139376]
[1764464959484,0.002,3013.0,3012.9,5.66735303]
[1764464959887,0.002,3013.0,3012.9,5.73875303]
[1764464960307,0.002,3013.0,3012.9,5.52675303]
[1764464960591,0.002,3013.0,3012.9,7.13875303]
[1764464960792,0.002,3013.0,3012.9,7.10556242]
[1764464962019,0.002,3013.0,3012.9,7.98802415]
[1764464962187,0.002,3013.0,3012.9,7.91662415]
[1764464962392,0.002,3013.0,3012.9,7.98802415]
[1764464962690,0.002,3013.0,3012.9,8.32066488]
[1764464963617,0.002,3013.0,3012.9,7.43820315]
[1764464964606,0.002,3013.0,3012.9,7.10556242]
[1764464964920,0.002,3013.0,3012.9,8.62002068]
[1764464965495,0.002,3013.0,3012.9,7.43820315]
[1764464967420,0.002,3013.0,3012.9,7.36680315]
[1764464968796,0.002,3013.0,3012.9,7.15480315]
[1764464968997,0.002,3013.0,3012.9,8.73428067]
[1764464970324,0.002,3013.0,3012.9,8.52328067]
[1764464970523,0.9522,3013.0,3012.9,8.73428067]
[1764464970708,0.9522,3013.0,3012.9,6.96176242]
[1764464970898,0.4771,3013.0,3012.9,6.96176242]
[1764464971098,0.002,3013.0,3012.9,6.96176242]
[1764464971528,0.4771,3013.0,3012.9,8.73428067]
[1764464971699,0.002,3013.0,3012.9,8.73428067]
[1764464973823,0.002,3013.0,3012.9,6.96176242]
[1764464974403,0.002,3013.0,3012.9,8.73428067]
[1764464975331,0.002,3013.0,3012.9,7.03316242]
[1764464977623,0.002,3013.0,3012.9,7.36580315]
[1764464979419,0.002,3013.0,3012.9,7.03316242]
[1764464979619,0.002,3013.0,3012.9,6.96176242]
[1764464980934,0.002,3013.0,3012.9,7.36580315]
[1764464981237,0.002,3013.0,3012.9,7.29440315]
[1764464981435,0.002,3013.0,3012.9,6.96176242]
[1764464985619,0.4771,3013.0,3012.9,6.96176242]
[1764464986026,0.002,3013.0,3012.9,6.96176242]
[1764464987634,0.4771,3013.0,3012.9,6.96176242]
[1764464987841,0.9522,3013.0,3012.9,5.85015947]
[1764464988142,0.9522,3013.0,3012.9,6.03108775]
[1764464988341,0.9522,3013.0,3012.9,4.25565547]
[1764464988540,0.9522,3013.0,3012.9,5.22824839]
[1764464989432,0.9522,3013.0,3012.9,3.31906136]
[1764464989845,0.9522,3013.0,3012.8,0.88755804]
[1764464990137,1.1322,3012.9,3012.7,0.88755804]
[1764464990447,0.6571,3012.9,3012.6,0.88755804]
[1764464990625,0.4751,3012.8,3012.6,0.88755804]
[1764464990810,0.4751,3012.7,3012.6,4.20694972]
[1764464991215,0.9502,3012.7,3012.6,3.31939168]
[1764464991616,0.9502,3012.7,3012.5,3.32045176]
[1764464991817,0.9502,3012.6,3012.5,0.001]
[1764464992018,0.9502,3012.6,3012.5,3.32050207]
[1764464992316,0.9502,3012.6,3012.5,0.001]
[1764464999748,0.4751,3012.6,3012.5,0.001]
[1764464999941,0.6506,3012.9,3012.5,0.03419502]
[1764465000336,0.4686,3012.8,3012.6,0.211]
[1764465000653,0.182,3012.9,3012.6,0.211]
[1764465000956,0.6506,3012.9,3012.6,1.23140318]
[1764465001123,0.4994,3012.7,3012.6,0.211]
[1764465001746,0.968,3012.7,3012.6,0.211]
[1764465004160,0.968,3012.7,3012.5,0.001]
[1764465004330,0.968,3012.6,3012.5,0.001]
[1764465008278,1.39671979,3012.6,3012.5,0.001]
[1764465008764,4.28739188,3012.6,3012.5,0.001]
[1764465008953,4.62332621,3012.6,3012.5,0.001]
[1764465009861,4.28739188,3012.6,3012.5,0.001]
[1764465010039,4.72715946,3012.6,3012.5,0.001]
[1764465015236,4.62355601,3012.6,3012.5,0.001]
[1764465015670,7.94294789,3012.6,3012.5,0.001]
[1764465015965,8.75834268,3012.6,3012.5,0.001]
[1764465016141,5.54255425,3012.6,3012.5,0.001]
[1764465016465,2.09822804,3012.6,3012.5,0.001]
[1764465017039,1.88722804,3012.6,3012.5,0.001]
[1764465017240,1.07183325,3012.6,3012.5,0.001]
[1764465018475,0.968,3012.6,3012.5,0.001]
[1764465018684,1.07182488,3012.6,3012.5,0.001]
[1764465018882,0.968,3012.6,3012.5,0.001]
[1764465019244,1.07182491,3012.6,3012.5,0.001]
[1764465020597,0.4994,3012.6,3012.5,0.001]
[1764465021369,0.182,3012.9,3012.5,0.0724]
[1764465021571,0.002,3012.6,3012.5,0.0724]
[1764465022868,0.002,3012.6,3012.5,0.81498449]
[1764465023992,0.002,3012.6,3012.5,4.13448656]
[1764465024699,0.002,3012.6,3012.5,6.04367359]
[1764465028604,0.002,3012.6,3012.5,9.25946202]
[1764465029188,0.002,3012.6,3012.5,5.97227359]
[1764465029388,0.002,3012.6,3012.5,4.78868067]
[1764465031106,0.002,3012.6,3012.5,4.82187569]
[1764465034874,0.9846,3012.6,3012.5,4.04609618]
[1764465035079,0.9846,3012.6,3012.5,4.25709618]
[1764465038209,0.9846,3012.6,3012.5,3.32050207]
[1764465038393,0.9846,3012.6,3012.5,3.53150207]
[1764465039683,0.9846,3012.6,3012.5,0.001]
[1764465041508,1.40463884,3012.6,3012.5,0.001]
[1764465041689,4.9563616,3012.6,3012.5,0.001]
[1764465042312,5.06019173,3012.6,3012.5,0.001]
[1764465042910,1.8444033,3012.6,3012.5,0.001]
[1764465046389,1.50846897,3012.6,3012.5,0.001]
[1764465050619,1.8444033,3012.6,3012.5,0.001]
[1764465052788,5.16379518,3012.6,3012.5,0.001]
[1764465053397,8.37958361,3012.6,3012.5,0.001]
[1764465058323,12.39053582,3012.6,3012.5,0.001]
[1764465058523,9.51359353,3012.6,3012.5,0.001]
[1764465059725,9.61278381,3012.6,3012.5,0.001]
[1764465062610,6.29489329,3012.6,3012.5,0.001]
[1764465062814,9.10808953,3012.6,3012.5,0.001]
[1764465067150,0.52586897,3012.6,3012.5,0.001]
[1764465067300,0.10583013,3012.6,3012.5,0.001]
[1764465069835,0.10583013,3012.6,3012.5,0.0724]
[1764465070135,0.58343013,3012.6,3012.5,0.001]
[1764465072943,4.38912201,3012.6,3012.5,0.001]
[1764465073143,0.58343013,3012.6,3012.5,0.001]
[1764465073343,0.10583013,3012.6,3012.5,0.001]
[1764465075019,0.58343013,3012.6,3012.5,0.001]
[1764465075640,1.06973013,3012.6,3012.5,0.001]
[1764465076238,4.38912201,3012.6,3012.5,0.001]
[1764465076743,1.86166023,3012.6,3012.5,0.001]
[1764465077047,1.06973013,3012.6,3012.5,0.001]
[1764465078648,4.38912201,3012.6,3012.5,0.001]
[1764465079146,1.06973013,3012.6,3012.5,0.001]
[1764465079340,0.10583013,3012.6,3012.5,0.001]
[1764465079535,0.10583013,3012.6,3012.5,0.0724]
[1764465084749,0.10583013,3012.6,3012.5,0.001]
[1764465085723,0.10583013,3012.6,3012.5,0.0724]
[1764465086154,0.10583013,3012.6,3012.5,0.001]
[1764465090739,0.10583013,3012.6,3012.5,0.0724]
[1764465091131,0.10583013,3012.6,3012.5,0.001]
[1764465092150,0.59213013,3012.6,3012.5,0.001]
[1764465093254,4.39932201,3012.6,3012.5,0.001]
[1764465093452,5.17117425,3012.6,3012.5,0.001]
[1764465093653,1.85178237,3012.6,3012.5,0.001]
[1764465094932,5.17117425,3012.6,3012.5,0.001]
[1764465095132,1.85178237,3012.6,3012.5,0.001]
[1764465095354,5.17117425,3012.6,3012.5,0.001]
[1764465096428,1.85178237,3012.6,3012.5,0.001]
[1764465096845,5.17117425,3012.6,3012.5,0.001]
[1764465098067,5.17117567,3012.6,3012.5,0.001]
[1764465098267,1.85178379,3012.6,3012.5,0.001]
[1764465098462,0.10583155,3012.6,3012.5,0.0724]
[1764465099341,0.10583155,3012.6,3012.5,0.001]
[1764465100937,1.07993155,3012.6,3012.5,0.001]
[1764465102573,0.59213155,3012.6,3012.5,0.001]
[1764465104675,1.07993155,3012.6,3012.5,0.001]
[1764465105260,1.53089473,3012.6,3012.5,0.001]
[1764465107786,4.85028661,3012.6,3012.5,0.001]
[1764465108279,1.53089473,3012.6,3012.5,0.001]
[1764465110883,4.85028661,3012.6,3012.5,0.001]
[1764465111254,4.85028446,3012.6,3012.5,0.001]
[1764465112683,1.53089258,3012.6,3012.5,0.001]
[1764465113185,4.85028446,3012.6,3012.5,0.001]
[1764465113776,5.18621879,3012.6,3012.5,0.001]
[1764465114681,1.53089258,3012.6,3012.5,0.001]
[1764465117691,0.1058294,3012.6,3012.5,0.1438]
[1764465118360,0.1058294,3012.6,3012.5,0.3548]
[1764465118556,0.002,3012.6,3012.5,0.3548]
[1764465118954,0.002,3012.6,3012.5,0.5678]
[1764465119387,0.002,3012.6,3012.5,4.13500077]
[1764465120289,0.002,3012.6,3012.5,5.31859369]
[1764465121391,0.002,3012.6,3012.5,5.19323561]
[1764465121687,0.002,3012.6,3012.5,6.96797007]
[1764465121865,0.002,3012.6,3012.5,7.37347407]
[1764465122071,0.002,3012.6,3012.5,5.59873961]
[1764465123186,0.002,3012.6,3012.5,5.05509888]
[1764465123398,0.002,3012.6,3012.5,7.03807652]
[1764465124684,0.002,3012.6,3012.5,6.42157252]
[1764465124885,0.002,3012.6,3012.5,6.04157883]
[1764465125370,0.002,3012.6,3012.5,6.81291858]
[1764465125566,0.002,3012.6,3012.5,5.38773961]
[1764465125798,0.002,3012.6,3012.5,6.44672364]
[1764465126387,0.002,3012.6,3012.5,6.23572364]
[1764465126717,0.002,3012.6,3012.5,3.60490207]
[1764465126876,0.002,3012.6,3012.5,0.214]
[1764465127076,0.002,3012.6,3012.5,3.32050207]
[1764465127379,0.002,3012.6,3012.5,3.53150207]
[1764465128297,0.002,3012.6,3012.5,0.001]
[1764465128501,0.4529,3012.6,3012.5,0.001]
[1764465128802,0.002,3012.6,3012.5,3.32050207]
[1764465129295,0.4529,3012.6,3012.5,3.32050207]
[1764465129595,0.4529,3012.6,3012.5,0.001]
[1764465131598,4.12040359,3012.6,3012.5,0.001]
[1764465131776,4.65736219,3012.6,3012.5,0.001]
[1764465132190,8.3126884,3012.6,3012.5,0.001]
[1764465134911,7.97675407,3012.6,3012.5,0.001]
[1764465135211,4.76205048,3012.6,3012.5,0.001]
[1764465135515,7.97675407,3012.6,3012.5,0.001]
[1764465137310,4.65736219,3012.6,3012.5,0.001]
[1764465138287,7.97675407,3012.6,3012.5,0.001]
[1764465139514,4.65736219,3012.6,3012.5,0.001]
[1764465140386,7.97675407,3012.6,3012.5,0.001]
[1764465148819,4.65736219,3012.6,3012.5,0.001]
[1764465149626,7.97675407,3012.6,3012.5,0.001]
[1764465150021,4.65736219,3012.6,3012.5,0.001]
[1764465151123,7.97675407,3012.6,3012.5,0.001]
[1764465152720,0.10581824,3012.6,3012.5,0.001]
[1764465152922,0.002,3012.6,3012.5,0.0724]
[1764465153628,0.002,3012.6,3012.5,0.001]
[1764465154322,0.10581824,3012.6,3012.5,0.001]
[1764465154526,0.002,3012.6,3012.5,0.001]
[1764465154842,0.10581824,3012.6,3012.5,0.001]
[1764465154997,0.002,3012.6,3012.5,0.001]
[1764465155198,0.1058283,3012.6,3012.5,0.001]
[1764465155628,0.6052283,3012.6,3012.5,0.001]
[1764465157405,3.81993189,3012.6,3012.5,0.001]
[1764465157618,5.00296009,3012.6,3012.5,0.001]
[1764465158403,1.7882565,3012.6,3012.5,0.001]
[1764465158724,1.0743283,3012.6,3012.5,0.001]
[1764465158921,0.6052283,3012.6,3012.5,0.001]
[1764465159123,1.0743283,3012.6,3012.5,0.001]
[1764465159431,4.28903189,3012.6,3012.5,0.001]
[1764465162108,0.6052283,3012.6,3012.5,0.001]
[1764465163462,0.1058283,3012.6,3012.5,0.0724]
[1764465166006,0.1058283,3012.6,3012.5,3.39190207]
[1764465166207,0.1058283,3012.6,3012.5,0.0724]
[1764465167307,0.1058283,3012.6,3012.5,0.001]
[1764465168318,0.1058283,3012.6,3012.5,0.0724]
[1764465169109,0.1058283,3012.6,3012.5,0.001]
[1764465171820,4.28903189,3012.6,3012.5,0.001]
[1764465172025,8.03732696,3012.6,3012.5,0.001]
[1764465178558,4.71793508,3012.6,3012.5,0.001]
[1764465180656,5.05386941,3012.6,3012.5,0.001]
[1764465181673,1.03413149,3012.6,3012.5,0.001]
[1764465181976,0.6052283,3012.6,3012.5,0.001]
[1764465183257,1.39236263,3012.6,3012.5,0.001]
[1764465183680,4.71175451,3012.6,3012.5,0.001]
[1764465184359,4.37582018,3012.6,3012.5,0.001]
[1764465189274,4.71175451,3012.6,3012.5,0.001]
[1764465189484,5.85762071,3012.6,3012.5,0.001]
[1764465190866,5.85762071,3012.6,3012.5,0.001]
[1764465192671,13.01278449,3012.6,3012.5,0.001]
[1764465192981,13.34871882,3012.6,3012.5,0.001]
[1764465193273,6.87227927,3012.3,3012.2,0.001]
[1764465193576,8.12110757,3012.3,3012.2,0.001]
[1764465193746,9.27509841,3012.3,3012.2,0.001]
[1764465193946,10.00069252,3012.3,3012.2,0.001]
[1764465194145,10.40619652,3012.3,3012.2,0.001]
[1764465194366,10.5053868,3012.3,3012.2,0.001]
[1764465195571,1.13109811,3012.2,3012.1,0.001]
[1764465195773,1.13109811,3012.2,3011.9,0.001]
[1764465195774,8.28084519,3012.0,3011.9,0.001]
[1764465196074,1.46703244,3011.9,3011.8,0.001]
[1764465196241,2.91236074,3011.9,3011.8,0.001]
[1764465197648,6.23252409,3011.9,3011.8,0.001]
[1764465201460,6.3656008,3011.9,3011.8,0.001]
[1764465201660,7.98783328,3011.9,3011.8,0.001]
[1764465206474,14.34783328,3011.9,3011.8,0.001]
[1764465209163,17.84583328,3011.9,3011.8,0.001]
[1764465209363,14.34783328,3011.9,3011.8,0.001]
[1764465209884,14.34983328,3011.9,3011.8,0.001]
[1764465210084,17.18025175,3011.9,3011.8,0.001]
[1764465210458,11.95515846,3011.9,3011.8,0.001]
[1764465210658,10.33292598,3011.9,3011.8,0.0734]
[1764465210884,6.4658283,3011.9,3011.8,0.0734]
[1764465211587,6.46586579,3011.9,3011.8,0.0734]
[1764465211788,9.78602914,3011.9,3011.8,0.0734]
[1764465212362,6.46586579,3011.9,3011.8,0.0734]
[1764465212562,9.78602914,3011.9,3011.8,0.0734]
[1764465212786,6.46586579,3011.9,3011.8,0.0734]
[1764465212960,9.78602914,3011.9,3011.8,0.0734]
[1764465213162,10.12196347,3011.9,3011.8,0.001]
[1764465214681,6.80180012,3011.9,3011.8,0.0734]
[1764465214871,10.12196347,3011.9,3011.8,0.0734]
[1764465215078,9.78602914,3011.9,3011.8,0.0734]
[1764465215680,10.12196347,3011.9,3011.8,0.001]
[1764465216275,6.80180012,3011.9,3011.8,0.001]
[1764465216591,10.12196347,3011.9,3011.8,0.001]
[1764465216763,10.12196347,3011.9,3011.8,0.0734]
[1764465216963,10.12196347,3011.9,3011.8,0.001]
[1764465217784,12.32028089,3011.9,3011.8,0.001]
[1764465217986,12.65621522,3011.9,3011.8,0.001]
[1764465218506,11.99171522,3011.9,3011.8,0.001]
[1764465218689,10.60046347,3011.9,3011.8,0.001]
[1764465218859,10.12196347,3011.9,3011.8,0.001]
[1764465219687,10.12196347,3011.9,3011.8,0.0734]
[1764465220591,6.46586579,3011.9,3011.8,0.0734]
[1764465220790,6.46586579,3011.9,3011.8,0.1458]
[1764465220993,11.57904759,3011.9,3011.8,0.001]
[1764465221160,11.10054759,3011.9,3011.8,0.001]
[1764465221365,10.76461326,3011.9,3011.8,0.0734]
[1764465222167,9.78602914,3011.9,3011.8,0.0734]
[1764465223294,6.46586579,3011.9,3011.8,0.0734]
[1764465223670,9.78602914,3011.9,3011.8,0.0734]
[1764465224585,9.78602914,3011.9,3011.8,0.001]
[1764465224787,10.26452914,3011.9,3011.8,0.001]
[1764465224970,9.78602914,3011.9,3011.8,0.001]
[1764465225295,9.78602914,3011.9,3011.8,0.0734]
[1764465225493,6.46586579,3011.9,3011.8,0.0734]
[1764465225670,9.78602914,3011.9,3011.8,0.0734]
[1764465226066,11.43256835,3011.9,3011.8,0.001]
[1764465226368,11.91106835,3011.9,3011.8,0.001]
[1764465226567,12.38156835,3011.9,3011.8,0.001]
[1764465226765,11.09663402,3011.9,3011.8,0.001]
[1764465226996,9.78602914,3011.9,3011.8,0.0734]
[1764465229297,9.78602914,3011.9,3011.8,0.001]
[1764465229601,10.12196347,3011.9,3011.8,0.001]
[1764465230098,9.78602914,3011.9,3011.8,0.001]
[1764465231103,9.7860263,3011.9,3011.8,0.0734]
[1764465234606,12.41606889,3011.9,3011.8,0.001]
[1764465234808,12.08013456,3011.9,3011.8,0.001]
[1764465235007,12.41606889,3011.9,3011.8,0.001]
[1764465237311,12.61276889,3011.9,3011.8,0.001]
[1764465237910,12.27683456,3011.9,3011.8,0.001]
[1764465238207,12.61276889,3011.9,3011.8,0.001]
[1764465238785,12.71195917,3011.9,3011.8,0.001]
[1764465239110,12.61276889,3011.9,3011.8,0.001]
[1764465240195,12.74584073,3011.9,3011.8,0.001]
[1764465244720,15.965256,3011.9,3011.8,0.001]
[1764465246725,12.74584073,3011.9,3011.8,0.001]
[1764465247790,11.56564073,3011.9,3011.8,0.001]
[1764465248188,11.43256889,3011.9,3011.8,0.001]
[1764465255821,14.65198416,3011.9,3011.8,0.001]
[1764465256043,15.14348416,3011.9,3011.8,0.001]
[1764465256221,15.83218416,3011.9,3011.8,0.001]
[1764465261625,15.96525025,3011.9,3011.8,0.001]
[1764465264925,14.78505025,3011.9,3011.8,0.001]
[1764465265619,13.13850766,3011.9,3011.8,0.0734]
[1764465265824,9.91909239,3011.9,3011.8,0.0734]
[1764465267543,10.25502672,3011.9,3011.8,0.0734]
[1764465268237,9.91909239,3011.9,3011.8,0.0734]
[1764465268408,10.25502672,3011.9,3011.8,0.0734]
[1764465269445,6.93486337,3011.9,3011.8,0.0734]
[1764465269753,6.93486337,3011.9,3011.8,0.1458]
[1764465269754,6.46586295,3011.9,3011.8,0.1458]
[1764465269935,6.46586295,3011.9,3011.8,0.0734]
[1764465271219,9.7860263,3011.9,3011.8,0.0734]
[1764465271928,3.42602558,3011.9,3011.8,0.0734]
[1764465272507,3.76195991,3011.9,3011.8,0.0734]
[1764465274750,0.44179637,3011.9,3011.8,0.0734]
[1764465274936,0.10586204,3011.9,3011.8,0.1458]
[1764465275623,0.10586204,3011.9,3011.8,0.0734]
[1764465276940,3.42602539,3011.9,3011.8,0.001]
[1764465277242,0.10586204,3011.9,3011.8,0.001]
[1764465277639,3.42602539,3011.9,3011.8,0.0734]
[1764465279144,8.48826898,3011.9,3011.8,0.001]
[1764465279345,8.10257499,3011.9,3011.8,0.001]
[1764465279518,8.23662072,3011.9,3011.8,0.001]
[1764465280334,5.01720545,3011.9,3011.8,0.001]
[1764465281053,8.23662072,3011.9,3011.8,0.001]
[1764465281553,9.39228831,3011.9,3011.8,0.001]
[1764465282371,6.17287304,3011.9,3011.8,0.001]
[1764465283969,5.83693871,3011.9,3011.8,0.001]
[1764465284144,6.17287304,3011.9,3011.8,0.001]
[1764465284569,9.05635398,3011.9,3011.8,0.001]
[1764465284943,9.39228831,3011.9,3011.8,0.001]
[1764465287275,10.52338642,3011.9,3011.8,0.001]
[1764465289976,16.88338642,3011.9,3011.8,0.001]
[1764465290359,16.9825767,3011.9,3011.8,0.001]
[1764465290881,20.4805767,3011.9,3011.8,0.001]
[1764465291084,16.9825767,3011.9,3011.8,0.001]
[1764465291948,13.66397115,3011.9,3011.8,0.001]
[1764465292273,16.88338642,3011.9,3011.8,0.001]
[1764465293048,13.66397115,3011.9,3011.8,0.001]
[1764465293250,16.88338642,3011.9,3011.8,0.001]
[1764465297050,16.88340359,3011.9,3011.8,0.001]
[1764465299853,17.09340359,3011.9,3011.8,0.001]
[1764465301285,16.02309959,3011.9,3011.8,0.001]
[1764465301485,16.02309959,3011.9,3011.8,0.0734]
[1764465301486,7.14585927,3011.9,3011.8,0.0734]
[1764465301794,6.67587921,3011.9,3011.8,0.1458]
[1764465302084,9.99604256,3011.9,3011.8,0.1458]
[1764465302256,6.67587921,3011.9,3011.8,0.1458]
[1764465302857,9.99604256,3011.9,3011.8,0.0734]
[1764465303357,6.67587921,3011.9,3011.8,0.0734]
[1764465303581,9.99604256,3011.9,3011.8,0.0734]
[1764465304577,10.33197689,3011.9,3011.8,0.0734]
[1764465305363,10.33196365,3011.9,3011.8,0.0734]
[1764465306782,9.99602932,3011.9,3011.8,0.0734]
[1764465310094,6.67586597,3011.9,3011.8,0.0734]
[1764465310287,9.99602932,3011.9,3011.8,0.0734]
[1764465317872,10.33196365,3011.9,3011.8,0.0734]
[1764465318409,10.33196029,3011.9,3011.8,0.0734]
[1764465321313,9.99602596,3011.9,3011.8,0.0734]
[1764465322811,10.33196029,3011.9,3011.8,0.0734]
[1764465324613,10.33196029,3011.9,3011.8,0.001]
[1764465324819,11.69716185,3011.9,3011.8,0.001]
[1764465324985,11.36122752,3011.9,3011.8,0.001]
[1764465326217,11.83332752,3011.9,3011.8,0.001]
[1764465327609,12.16926185,3011.9,3011.8,0.001]
[1764465328415,11.69716185,3011.9,3011.8,0.001]
[1764465329225,6.46586261,3011.9,3011.8,0.0734]
[1764465329414,0.10586261,3011.9,3011.8,0.1458]
[1764465330321,0.10586261,3011.9,3011.8,0.0734]
[1764465330820,0.10586261,3011.9,3011.8,0.001]
[1764465330821,4.89666029,3011.9,3011.8,0.001]
[1764465331027,4.56953991,3011.9,3011.8,0.0734]
[1764465331188,3.42602596,3011.9,3011.8,0.0734]
[1764465331828,0.10586261,3011.9,3011.8,0.1458]
[1764465332127,0.10586261,3011.9,3011.8,0.0734]
[1764465333697,8.11508512,3011.9,3011.8,0.001]
[1764465333930,6.04017421,3011.9,3011.8,0.001]
[1764465337630,5.37757421,3011.9,3011.8,0.001]
[1764465339531,6.04017421,3011.9,3011.8,0.001]
[1764465340920,6.0401808,3011.9,3011.8,0.001]
[1764465345231,5.70424647,3011.9,3011.8,0.001]
[1764465345434,3.42603255,3011.9,3011.8,0.0734]
[1764465346113,3.42603255,3011.9,3011.8,0.001]